Cogmind - Beta 13 @@@ ROGUE MODE // 2024.04.13 @ 02:00:37 Player: Aeon PSR Result: Self-destructed Performance ------------- Evolutions (2) 1000 Regions Visited (5) 1000 Robots Destroyed (3) 15 Value Destroyed (50) 50 Prototype IDs (2) 40 Alien Tech Used (0) 0 Bonus (0) 0 TOTAL SCORE: 2105 Bonus ------- None Cogmind --------- Core Integrity 500/550 Matter 87/300 Energy 250/250 System Corruption 0% Temperature Cool (0) Movement Flying (117) Ox1 Location -8/Materials Parts ------- > --- POWER (1) -------- Ion Engine > --- PROPULSION (4) --- Flight Unit Flight Unit > --- UTILITY (4) ------ Experimental Sensor Array Improved Signal Interpreter Improved Terrain Scanner ECM Suite > --- WEAPON (2) ------- Light Assault Rifle Mining Laser > --- INVENTORY (5) ---- Sensor Array Hacking Suite System Shield Recalibrator Peak State ------------ > --- POWER ------------ Heavy Ion Engine > --- PROPULSION ------- Flight Unit Flight Unit Flight Unit > --- UTILITY ---------- Experimental Sensor Array Improved Signal Interpreter Improved Terrain Scanner > --- WEAPON ----------- Light Assault Rifle Light Assault Rifle > --- INVENTORY -------- Ion Engine Light Ion Engine Sensor Array Mining Laser [Rating: 23] Favorites ----------- Power Light Ion Engine Engine Light Ion Engine Propulsion Flight Unit Wheel Compact Wheel Flight Unit Flight Unit Utility Improved Signal Interpreter Device Experimental Sensor Array Storage Small Storage Unit Processor Improved Signal Interpreter Weapon Light Assault Rifle Energy Gun EM Pulse Gun Ballistic Gun Light Assault Rifle Special Weapon Mining Laser Build | -11 -10 -10 -10 -9 -8 ------- Run | Yrd Mat Min Exi Min Mat Slots Evolved 4 | . . . . . 4 Power . | . . . . . . Propulsion 2 | . . . . . 2 Utility 2 | . . . . . 2 Weapon . | . . . . . . Parts Attached 32 | 6 12 2 . . 12 Power 6 | 1 1 . . . 4 Engine 6 | 1 1 . . . 4 Core . | . . . . . . Reactor . | . . . . . . Propulsion 11 | 2 8 . . . 1 Treads . | . . . . . . Leg . | . . . . . . Wheel 4 | 2 2 . . . . Hover . | . . . . . . Flight 7 | . 6 . . . 1 Utility 10 | 1 1 2 . . 6 Device 8 | . 1 1 . . 6 Storage 1 | 1 . . . . . Processor 1 | . . 1 . . . Hackware . | . . . . . . Protection . | . . . . . . Artifact . | . . . . . . Weapon 5 | 2 2 . . . 1 Energy Gun 2 | 2 . . . . . Energy Cannon . | . . . . . . Ballistic Gun 2 | . 2 . . . . Ballistic Cannon . | . . . . . . Launcher . | . . . . . . Special Weapon 1 | . . . . . 1 Impact Weapon . | . . . . . . Slashing Weapon . | . . . . . . Piercing Weapon . | . . . . . . Special Melee Weapon . | . . . . . . Unidentified Prototypes 2 | . . 1 . . 1 Corrupted Parts 1 | . 1 . . . . System Corruption 1 | . 1 . . . . Parts Lost 1 | . . . . . 1 Power . | . . . . . . Propulsion 1 | . . . . . 1 Utility . | . . . . . . Weapon . | . . . . . . Highest Loss Streak 1 | . . . . . 1 To Critical Strikes . | . . . . . . Average Slot Usage (%) 90 | . 84 95 100 100 85 Engine 12 | . 14 14 14 14 9 Wheel 3 | . 12 . . . . Flight 24 | . 15 28 28 28 26 Device 14 | . 3 14 14 14 23 Storage 2 | . 9 . . . . Processor 8 | . . 9 14 14 9 Energy Gun 1 | . 7 . . . . Ballistic Gun 21 | . 21 28 28 28 14 Naked Turns . | . . . . . . Heaviest Build 14 | 14 14 6 6 6 11 Greatest Support 26 | 26 26 8 8 8 12 Greatest Overweight (x) 1 | . . . . . 1 Average Overweight (x) . | . . . . . . Largest Inventory Capacity 8 | 8 8 5 5 5 5 Average Capacity 5 | 7 7 5 5 5 5 Most Carried 8 | 3 8 5 5 5 5 Average Carried 4 | 1 5 4 5 5 4 Final Capacity 8 | 8 5 5 5 5 5 Final Carried 5 | 3 5 5 5 5 4 Class Distribution -------------------- 60% | Scavenger-Mutant 15% | Scavenger-Scout 11% | Scout 10% | Mutant Dominant Class ---------------- Scavenger-Mutant | -10/Materials Scavenger-Mutant | -10/Mines Scavenger-Mutant | -10/Exiles Scavenger-Mutant | -9/Mines Scavenger-Scout | -8/Materials Resources | -11 -10 -10 -10 -9 -8 ----------- Run | Yrd Mat Min Exi Min Mat Matter Collected 268 | 212 56 . . . . Remotely . | . . . . . . Salvage Created 56 | . 56 . . . . Parts 6 | . 6 . . . . Haulers Intercepted . | . . . . . . Recyclers Shooed . | . . . . . . Parts Field Recycled . | . . . . . . Retrieved Matter . | . . . . . . Parts Self-Destructed . | . . . . . . Prevented . | . . . . . . Kills | -11 -10 -10 -10 -9 -8 ------- Run | Yrd Mat Min Exi Min Mat Combat Hostiles Destroyed 3 | . 3 . . . . Guns 2 | . 2 . . . . AOE 1 | . 1 . . . . Classes Destroyed 1 | . 1 . . . . Swarmer 3 | . 3 . . . . Best Kill Streak 3 | . 3 . . . . Combat Bots Only 3 | . 3 . . . . Max Kills in Single Turn 1 | . 1 . . . . Gunslinging . | . . . . . . Exploded 1 | . 1 . . . . Melee . | . . . . . . Uniques/NPCs Destroyed . | . . . . . . Combat | -11 -10 -10 -10 -9 -8 -------- Run | Yrd Mat Min Exi Min Mat Hostile Shots Fired 41 | . 18 . . . 23 Missed 14 | . 5 . . . 9 Damage Taken 265 | . 132 . . . 133 Core 125 | . 75 . . . 50 Absorbed by Shields . | . . . . . . Core Remaining (%) 85 | 100 . . . 70 . Volleys Fired 13 | . 6 . . . 7 Largest 2 | . 2 . . . 2 Hottest 120 | . 90 . . . 120 Shots Fired 20 | . 12 . . . 8 Gun 17 | . 12 . . . 5 Cannon . | . . . . . . Launcher . | . . . . . . Special 3 | . . . . . 3 Kinetic 9 | . 4 . . . 5 Thermal 7 | . 4 . . . 3 Explosive . | . . . . . . Electromagnetic 4 | . 4 . . . . Robot Hit Streak 2 | . 2 . . . 1 Robot Miss Streak 3 | . 2 . . . 3 Penetration Max . | . . . . . . Secondary Targets . | . . . . . . Shots Hit Robots 8 | . 6 . . . 2 Core Hits 4 | . 3 . . . 1 Critical Kills . | . . . . . . Critical Parts Destroyed . | . . . . . . Critical Strikes . | . . . . . . Melee Attacks . | . . . . . . Impact . | . . . . . . Slashing . | . . . . . . Piercing . | . . . . . . Sneak Attacks . | . . . . . . Combat Hostiles . | . . . . . . Follow-up Attacks . | . . . . . . Damage Inflicted 120 | . 104 . . . 16 Guns 78 | . 62 . . . 16 Cannons . | . . . . . . Explosions 42 | . 42 . . . . Melee . | . . . . . . Ramming . | . . . . . . Kinetic 32 | . 16 . . . 16 Thermal 66 | . 66 . . . . Explosive . | . . . . . . Electromagnetic 22 | . 22 . . . . Impact . | . . . . . . Slashing . | . . . . . . Piercing . | . . . . . . Highest Corruption 1 | . 1 1 1 1 . Average Corruption 1 | . 1 1 1 1 . Corruption Purged . | . . . . . . Corruption Blocked . | . . . . . . Effects 6 | . 4 . 2 . . Message Errors 2 | . 1 . 1 . . Heat Flow Errors 1 | . 1 . . . . Data Loss (minor) 2 | . 1 . 1 . . Alerts 1 | . 1 . . . . Overload Shots . | . . . . . . Overflow Damage . | . . . . . . Projectiles . | . . . . . . Explosions . | . . . . . . Melee . | . . . . . . Knockbacks . | . . . . . . Impact . | . . . . . . Kinetic . | . . . . . . Secondary . | . . . . . . Self-Inflicted Damage 20 | . 20 . . . . Shots 1 | . 1 . . . . Rammed . | . . . . . . Targets Rammed . | . . . . . . Kicked . | . . . . . . Crushed . | . . . . . . Highest Temperature 304 | . 304 . . . 28 Average Temperature 100 | . 128 . . . 11 Received Heat Transfer 42 | . 15 . . . 27 Siege Activations . | . . . . . . Robots Corrupted . | . . . . . . Combat Hostiles . | . . . . . . Parts Fried . | . . . . . . Impact Corruptions . | . . . . . . Robots Melted . | . . . . . . Combat Hostiles . | . . . . . . Parts Melted 1 | . 1 . . . . Heat Transferred 74 | . 74 . . . . Parts Sabotaged . | . . . . . . Parts Stolen . | . . . . . . Parts Stripped . | . . . . . . Power Chain Reactions 1 | . 1 . . . . Alert | -11 -10 -10 -10 -9 -8 ------- Run | Yrd Mat Min Exi Min Mat Peak Influence 178 | . 178 99 . . 108 Initial 69 | . . 69 . . . Average 61 | . 121 90 . . 20 Maximum Alert Level . | . . . . . . Low Security (%) 100 | 100 100 100 . 100 100 Level 1 . | . . . . . . Level 2 . | . . . . . . Level 3 . | . . . . . . Level 4 . | . . . . . . Level 5 . | . . . . . . High Security . | . . . . . . Max Security . | . . . . . . Squads Dispatched 2 | . 1 1 . . . Investigation 1 | . . 1 . . . Extermination . | . . . . . . Reinforcement 1 | . 1 . . . . Assault . | . . . . . . Garrison . | . . . . . . Intercept . | . . . . . . Searches Triggered . | . . . . . . Construction Impeded . | . . . . . . Haulers Reinforced . | . . . . . . Active Scanning Responses . | . . . . . . Cargo Convoy Interrupts . | . . . . . . Stealth | -11 -10 -10 -10 -9 -8 --------- Run | Yrd Mat Min Exi Min Mat Distress Signals 1 | . 1 . . . . Communications Jammed . | . . . . . . Distress Signals . | . . . . . . Times Spotted 24 | . 11 2 . . 11 Peak Tracking Total 8 | . 6 2 . . 8 Tactical Retreats 3 | . 1 1 . . 1 Traps | -11 -10 -10 -10 -9 -8 ------- Run | Yrd Mat Min Exi Min Mat Traps Triggered 1 | . . . . . 1 Indirectly . | . . . . . . Trap Hack Attempts . | . . . . . . Triggered . | . . . . . . Disarmed . | . . . . . . Reprogrammed . | . . . . . . Reused . | . . . . . . Traps Extracted . | . . . . . . Installed . | . . . . . . Triggered . | . . . . . . Machines | -11 -10 -10 -10 -9 -8 ---------- Run | Yrd Mat Min Exi Min Mat Machines Disabled 2 | . 2 . . . . Max in Single Turn 2 | . 2 . . . . Machines Repaired . | . . . . . . Machines Dismantled . | . . . . . . Machines Sabotaged . | . . . . . . Overloaded Fab Kills . | . . . . . . Hacking | -11 -10 -10 -10 -9 -8 --------- Run | Yrd Mat Min Exi Min Mat Machines Accessed 8 | . 2 1 4 . 1 Terminals 1 | . 1 . . . . Fabricators . | . . . . . . Repair Stations . | . . . . . . Recycling Units 2 | . 1 . . . 1 Scanalyzers . | . . . . . . Garrison Access . | . . . . . . Total Hacks 57 | . 3 1 49 . 4 Successful 55 | . 2 1 49 . 3 Failed 2 | . 1 . . . 1 Catastrophic . | . . . . . . Database Lockouts . | . . . . . . Manual . | . . . . . . Terminals 2 | . 2 . . . . Fabricators . | . . . . . . Repair Stations . | . . . . . . Recycling Units 5 | . 1 . . . 4 Scanalyzers . | . . . . . . Garrison Access . | . . . . . . Terminal Hacks 51 | . 1 1 49 . . Record 49 | . . . 49 . . Open Door 1 | . . 1 . . . Investigation Status 1 | . 1 . . . . Fabricator Hacks . | . . . . . . Repair Station Hacks . | . . . . . . Recycling Unit Hacks 4 | . 1 . . . 3 Process 1 | . . . . . 1 Report Inventory 2 | . 1 . . . 1 Retrieve Matter 1 | . . . . . 1 Scanalyzer . | . . . . . . Garrison Access Hacks . | . . . . . . Unauthorized Hacks . | . . . . . . Terminals . | . . . . . . Fabricators . | . . . . . . Repair Stations . | . . . . . . Recycling Units . | . . . . . . Scanalyzers . | . . . . . . Garrison Access . | . . . . . . Data Cores Recovered . | . . . . . . Used . | . . . . . . Hacking Detections 1 | . . . . . 1 Full Trace Events . | . . . . . . Feedback Events . | . . . . . . Feedback Blocked . | . . . . . . Robot Schematics Acquired . | . . . . . . Robots Built . | . . . . . . Authchips . | . . . . . . Time . | . . . . . . Total Robot Build Rating . | . . . . . . Part Schematics Acquired . | . . . . . . Parts Built . | . . . . . . Authchips . | . . . . . . Time . | . . . . . . Total Part Build Rating . | . . . . . . Parts Repaired . | . . . . . . Time . | . . . . . . Parts Recycled . | . . . . . . Recycled Matter 43 | . . . . . 43 Retrieved Matter 43 | . . . . . 43 Retrieved Components . | . . . . . . Parts Scanalyzed . | . . . . . . Part Schematics Acquired . | . . . . . . Parts Damaged . | . . . . . . Bothacking | -11 -10 -10 -10 -9 -8 ------------ Run | Yrd Mat Min Exi Min Mat Used RIF Installer . | . . . . . . Robots Hacked . | . . . . . . Non-combat . | . . . . . . Combat . | . . . . . . Robot Hacks Applied . | . . . . . . Relay Couplers Released . | . . . . . . Fabnet Peak Effective % . | . . . . . . Robots Rewired . | . . . . . . Allies Hacked . | . . . . . . Hacks Repelled . | . . . . . . Allies | -11 -10 -10 -10 -9 -8 -------- Run | Yrd Mat Min Exi Min Mat Total Allies . | . . . . . . Largest Group . | . . . . . . Highest-Rated Group . | . . . . . . Highest-Rated Ally . | . . . . . . Total Orders . | . . . . . . Ally Attacks . | . . . . . . Total Damage . | . . . . . . Kills . | . . . . . . Allies Corrupted . | . . . . . . Allies Melted . | . . . . . . Intel | -11 -10 -10 -10 -9 -8 ------- Run | Yrd Mat Min Exi Min Mat Robot Analysis Total . | . . . . . . Derelict Logs Recovered 1 | . . . . 1 . Drone Launches . | . . . . . . Drone Recoveries . | . . . . . . Exploration | -11 -10 -10 -10 -9 -8 ------------- Run | Yrd Mat Min Exi Min Mat Turns Passed 874 | 75 218 89 230 15 247 Spaces Moved 1499 | 69 224 219 622 38 327 Core 5 | 5 . . . . . Treads . | . . . . . . Legs . | . . . . . . Wheels 127 | 64 63 . . . . Hover . | . . . . . . Flight 1367 | . 161 219 622 38 327 Fastest Speed 34 | 50 37 37 37 37 34 Average Speed 41 | 87 53 37 37 37 34 Slowest Speed 117 | 90 100 37 37 37 117 Overloaded Moves . | . . . . . . Propulsion Burnouts . | . . . . . . Robots Hopped 1 | . . . . . 1 Cave-ins Triggered . | . . . . . . Exploration Rate (%) 39 | 6 55 49 90 14 25 Regions Visited 5 Branch Regions 3 Pre-discovered Areas 1 | . . . 1 . . Known Exits Taken 3 | . . 1 1 1 . Unknown Exits Taken 2 | 1 1 . . . . Scrap Searched . | . . . . . . Spaces Dug 2 | . . . . . 2 Terrain Destroyed 5 | . 2 . . . 3 Melee . | . . . . . . Projectile 3 | . . . . . 3 AOE 2 | . 2 . . . . Terrain Rammed . | . . . . . . Walls Destroyed . | . . . . . . Machines Disabled . | . . . . . . Actions | -11 -10 -10 -10 -9 -8 --------- Run | Yrd Mat Min Exi Min Mat Total 1725 | 83 311 226 621 38 446 Wait 151 | . 55 2 . 1 93 Move 1492 | 68 223 218 621 37 325 Hop 1 | . . . . . 1 Pick Up 22 | 9 7 2 . . 4 Fast Attach 5 | . 1 1 . . 3 Attach 15 | 6 3 . . . 6 Detach 5 | . 3 . . . 2 Swap 12 | . 8 1 . . 3 Drop 9 | . 5 2 . . 2 Fire 13 | . 6 . . . 7 Melee . | . . . . . . Ram . | . . . . . . Kick . | . . . . . . Crush . | . . . . . . Escape Stasis . | . . . . . . Rewire . | . . . . . . Trap . | . . . . . . Miscellaneous . | . . . . . . Route ------- -11/Scrapyard -10/Materials -10/Mines -10/Exiles (discovered 2 exits: *Min x2) -9/Mines -8/Materials History --------- Turn | Location | Event 4 | -11/Scrapyard | Discovered new exit (range 15) 76 | -11/Scrapyard | Entered Materials 285 | -10/Materials | Discovered new exit (range 14) 294 | -10/Materials | Entered Mines 320 | -10/Mines | Met a Derelict shopkeep closing up shop 373 | -10/Mines | Found a damaged Exp. Sensor Array with a note attached 374 | -10/Mines | Found Prototype Device 375 | -10/Mines | Identified Exp. Sensor Array 381 | -10/Mines | Deemed a non-threat by the Exiles lab entrance 381 | -10/Mines | Discovered new exit (range 5) 383 | -10/Mines | Identified exit to Exiles 383 | -10/Mines | Entered Exiles 389 | -10/Exiles | Discovered new exit (range 15) 394 | -10/Exiles | Identified exit to Mines 396 | -10/Exiles | Build established: Scavenger-Mutant 402 | -10/Exiles | Met 8R-AWN 408 | -10/Exiles | Met EX-HEX 425 | -10/Exiles | Met EX-BIN 441 | -10/Exiles | Met EX-DEC 449 | -10/Exiles | Learned location of Zion (-6) 467 | -10/Exiles | Discovered exit to Mines (range 14) 494 | -10/Exiles | Visited The Gauntlet 613 | -10/Exiles | Entered Mines 615 | -9/Mines | Discovered new exit (range 14) 615 | -9/Mines | Learned Materials security intel 619 | -9/Mines | Identified exit to Materials 625 | -9/Mines | Assembled infested the area 628 | -9/Mines | Entered Materials 628 | -8/Materials | Evolved 4 slots: Propulsion x2, Utility x2 875 | -8/Materials | Self-destructed Last Messages --------------- Prototype Flight Unit (58%) >>Recycling(Process) Analyzing inventory... Recycling at 100% efficiency: Titanium Leg (29) Adv. Weight Redist. System (6) Prototype Flight Unit (8) >>Retrieve(Matter) Matter ejected: 43 K-01 Serf cleans the Terminal. Connecting with Terminal... C-30 ARC bursts open, deploying its payload. G-50 Soldier unfolds itself. G-47 Trooper unfolds itself. K-01 Serf collects debris. Processing Tank disabled. K-01 Serf cleans the Terminal. T-07 Excavator is excavating. U-05 Engineer builds a Wall. Flight Unit destroyed. Map ----- +----------------------------------------------------+ | ?????????????????????????????????????????????????? | | ?????????????????????????????????????????????????? | | ?????????????????????????????????????????????????? | | ?????????????????????????????????????????????????? | | ?????????????????????????????????????????????????? | | ?????????????????????????????????????????????????? | | ?????????????????????????????????????????????????? | | ?????????????????????????????????????????????????? | | ?????????????????????????????????????????????????? | | ?????????????????????????????????????????????????? | | ?????????????????????????????????????????????????? | | ????????????????a????????????????????????????????? | | ???????????????????Y?????????????????????????????? | | ?????????????????????????????????????????????????? | | ??????????????????????????????????????????#??????? | | ??????????????????????????????????????????#??????? | | ????????????????????#????????????????????????????? | | ????????????????????????????????????????????????"? | | ?????????????????????###########????????????????? | | ????????????? ???????# ##??#?????????#???? | | ???????????????? ????# ############??##### | | ???????????????????? # # #??# | | ?????????????????????# ! + #??# | | ?????????????????????# # #??# | | ???????????????????? #= sss # ###### #??# # | | ?????????????????????# @ # #???# #??# # | | ?????????????????? ??#] # ???# #??# # | | ???????????????Y#????####+###### t??#u #### + | | ????????????????????????# ##???# #??# # | | ??????????r?????????????# ############# # | | ????????????????????????#g## #" # | | ???????????????????#????#g## ######### # | | ????????????????????????# ## #? ?????# # | | ????????????????s?ss????#g## #???????# # | | ????????????????????????# ## """ """ #???????# # | | ???????????????"????????# ## """ """ #???????# # | | ????????????????????????# ## """ """ #???????# # | | ????????????????????????# ## #???????# # | | ???????????????########## ########+######+### | | ??????????????g a "%" w | | ?????????????? g " T | | ??????????????""" """" ""k | | ?????????????"""" """"" Y" #######+### | | ???????# """"" """"" "" #??????? ???#?#? | | ???????# #??????????????? | | ???????# #??????????????? | | ??????????????######""T""#"T"## #??????????????? | | ???????????????????#"""""#"""## #??????????????? | | ?????????????????############## ##?????????????? | | ?????????????????# ####### ########??????? | +----------------------------------------------------+ Best States ------------- Heat Dissipation 31 Energy Generation 10 Energy Capacity 250 Matter Stores 268 Matter Capacity 300 Sight Range 16 Robot Scan Range 20 Terrain Scan Range 16 Terrain Scan Density 10 ECM Strength 1 Evasion (%) 63 Item Schematics ----------------- None Robot Schematics ------------------ None Fabricated ------------ Nothing Alien Tech Used ----------------- None Achievements -------------- None Challenges ------------ None Game ------ Seed ExplosiveAlphaTriangulator Manual? 0 Play Time 00:30:42 Cumulative 11.4 hours Start 2024.04.12 @ 14:05:34 End 2024.04.13 @ 02:00:37 Sessions 3 Manual Loads 0 Difficulty Rogue Special Mode None Game No. 14 Rogue 14 Adventurer 0 Explorer 0 Win Type - Total 0 Types 0/0/0/0/0/0/0/0/0 Lore% 18 Gallery% 16 Achievement% 16 Wizard Run 0 Options --------- Layout 1 ASCII 0 Keyboard 0 Movement Mouse Keybinds 0 Fullscreen 2 Font 24/Crisp Map View 50x35 Zoom Use 0% Tactical HUD 0 Map Filters NONE Filters NONE Steam 1 RUN: 6e11476b-aa1d-4691-937a-3f84461c5a72